bitfinex/quotes_SOLUSD_20250929
["timestamp","ask_amount","ask_price","bid_price","bid_amount"]
[1759187119347,26.66,214.05,214.04,0.2]
[1759187119528,42.10203414,214.05,214.04,0.2]
[1759187119728,42.10203414,214.05,213.96,0.2]
[1759187119729,26.0,214.01,213.96,0.2]
[1759187119941,13.59559401,214.0,213.96,0.2]
[1759187120232,4.67311556,213.99,213.96,0.2]
[1759187120439,26.0,213.97,213.96,0.2]
[1759187120946,26.66,213.97,213.96,0.2]
[1759187122029,26.0,213.97,213.96,0.2]
[1759187122350,131.6,213.99,213.96,0.2]
[1759187122848,132.28,213.99,213.96,0.2]
[1759187123532,0.68,213.98,213.96,0.2]
[1759187123840,26.68,213.97,213.96,0.2]
[1759187124047,31.35355236,213.97,213.96,0.2]
[1759187125034,44.94914637,213.97,213.96,0.2]
[1759187125748,46.7955865,213.97,213.96,0.2]
[1759187127732,44.94914637,213.97,213.96,0.2]
[1759187127939,77.62914637,213.97,213.96,0.2]
[1759187129448,44.94914637,213.97,213.96,0.2]
[1759187131233,30.67355236,213.97,213.96,0.2]
[1759187131427,44.94914637,213.97,213.96,0.2]
[1759187133656,46.82404384,213.97,213.96,0.2]
[1759187134050,46.82404384,213.97,213.96,1e-08]
[1759187134465,50.47544303,213.97,213.96,1e-08]
[1759187134861,46.82404384,213.97,213.96,1e-08]
[1759187135037,79.50404384,213.97,213.96,1e-08]
[1759187136352,46.82404384,213.97,213.96,1e-08]
[1759187136554,79.50404384,213.97,213.96,1e-08]
[1759187137153,46.82404384,213.97,213.96,1e-08]
[1759187137344,79.50404384,213.97,213.96,1e-08]
[1759187137941,46.82404384,213.97,213.96,1e-08]
[1759187138146,46.14404384,213.97,213.96,1e-08]
[1759187138357,80.67048397,213.97,213.96,1e-08]
[1759187138566,78.82404384,213.97,213.96,1e-08]
[1759187138873,77.62914637,213.97,213.96,1e-08]
[1759187139173,76.94914637,213.97,213.96,1e-08]
[1759187142575,80.05574848,213.97,213.96,1e-08]
[1759187143160,80.73574848,213.97,213.96,1e-08]
[1759187143760,80.05574848,213.97,213.96,1e-08]
[1759187144854,80.73574848,213.97,213.96,1e-08]
[1759187145258,80.05574848,213.97,213.96,1e-08]
[1759187148068,83.92528022,213.97,213.96,1e-08]
[1759187148273,84.60528022,213.97,213.96,1e-08]
[1759187148874,80.05574848,213.97,213.96,1e-08]
[1759187149282,83.92528022,213.97,213.96,1e-08]
[1759187149493,80.05574848,213.97,213.96,1e-08]
[1759187150277,83.92528022,213.97,213.96,1e-08]
[1759187151203,91.73962939,213.97,213.94,0.66]
[1759187151406,39.59559401,213.95,213.94,0.66]
[1759187151580,42.70219612,213.95,213.94,0.66]
[1759187152574,29.10660211,213.95,213.94,0.66]
[1759187152789,3.10660211,213.95,213.94,5.33420772]
[1759187152993,3.91719131,214.02,213.94,5.33420772]
[1759187153291,26.0,214.0,213.96,4.67377079]
[1759187153496,26.0,214.0,213.97,0.68]
[1759187153797,4.67226039,214.03,213.97,0.68]
[1759187153998,8.58903984,214.05,213.97,0.68]
[1759187154299,34.58903984,214.05,213.97,0.68]
[1759187154891,14.26559401,214.04,213.97,0.68]
[1759187155281,4.6722422,214.03,213.97,0.68]
[1759187155883,4.6722422,214.03,213.97,5.35352223]
[1759187156093,4.6722422,214.03,213.98,0.68]
[1759187156288,4.6722422,214.03,213.99,0.68]
[1759187158402,5.3422422,214.03,213.99,0.68]
[1759187158584,4.6722422,214.03,213.99,0.68]
[1759187159405,0.67,214.02,213.97,0.68]
[1759187159607,0.67,214.02,213.98,0.68]
[1759187159792,4.6722422,214.03,213.98,0.68]
[1759187159992,5.3422422,214.03,213.98,0.68]
[1759187160509,4.6722422,214.03,213.99,0.68]
[1759187160692,131.6,214.04,213.99,0.68]
[1759187161087,0.67,214.03,213.97,0.68]
[1759187161794,0.67,214.03,213.95,0.68]
[1759187162322,4.67246051,214.02,213.95,5.35377263]
[1759187162513,4.67246051,214.02,213.96,0.68]
[1759187163118,5.34246051,214.02,213.96,0.68]
[1759187164207,5.34246051,214.02,213.96,5.35373993]
[1759187166123,5.34246051,214.02,213.93,13.53219959]
[1759187166124,5.34246051,214.02,213.97,0.68]
[1759187166425,5.34246051,214.02,213.98,0.68]
[1759187166924,5.34246051,214.02,213.96,0.68]
[1759187167091,3.14497226,214.03,213.97,0.68]
[1759187167295,3.14497226,214.03,213.97,2.52644013]
[1759187167495,3.14497226,214.03,213.98,0.68]
[1759187168196,3.14497226,214.03,213.99,4.67311556]
[1759187168508,131.6,214.04,213.99,4.67311556]
[1759187168509,131.6,214.04,214.0,0.68]
[1759187168910,4.67115929,214.08,214.0,2.52644013]
[1759187169123,3.14367952,214.07,214.01,0.68]
[1759187169424,3.14367952,214.07,214.02,4.67246051]
[1759187169618,7.81483881,214.08,214.03,0.68]
[1759187169818,7.81483881,214.08,213.99,0.68]
[1759187169819,0.67,214.07,213.99,0.68]
[1759187170744,13.59559401,214.06,213.97,2.88564748]
[1759187170943,26.0,214.03,213.94,0.68]
[1759187171144,0.67,214.02,213.94,5.35419204]
[1759187171437,29.81367952,214.03,213.95,3.56564748]
[1759187171731,34.48608985,214.03,213.96,5.35377079]
[1759187173639,29.81367952,214.03,213.96,4.67377079]
[1759187173841,29.81367952,214.03,213.97,0.68]
[1759187174042,0.67,214.02,213.97,0.68]
[1759187174235,0.67,214.01,213.97,0.68]
[1759187174752,0.71,214.0,213.94,5.38399368]
[1759187175847,26.71,213.99,213.92,5.38451002]
[1759187176025,0.71,213.98,213.92,5.38451002]
[1759187176226,26.0,213.99,213.92,5.38451002]
[1759187176429,0.71,213.97,213.92,5.38451002]
[1759187176837,26.0,213.99,213.91,32.72000001]
[1759187176838,0.71,213.96,213.91,32.72000001]
[1759187177018,0.71,213.95,213.91,32.72000001]
[1759187177751,0.71,213.94,213.91,32.72000001]
[1759187177941,0.71,213.93,213.91,1e-08]
[1759187178524,0.71,213.92,213.91,1e-08]
[1759187179820,5.38464472,213.92,213.91,1e-08]
[1759187180320,21.86588621,213.92,213.91,1e-08]
[1759187180822,20.85539988,213.92,213.91,1e-08]
[1759187181027,18.98023873,213.92,213.91,1e-08]
[1759187181839,5.37441048,213.94,213.91,1e-08]
[1759187182224,26.7,213.93,213.91,1e-08]
[1759187182534,39.59559401,213.92,213.91,1e-08]
[1759187182741,42.7391929,213.92,213.91,1e-08]
[1759187182954,43.4391929,213.92,213.91,1e-08]
[1759187183838,48.11383762,213.92,213.91,1e-08]
[1759187184036,49.98908667,213.92,213.91,1e-08]
[1759187184434,52.87473415,213.92,213.91,1e-08]
[1759187185633,85.69473415,213.92,213.91,1e-08]
[1759187185847,92.10165984,213.92,213.91,1e-08]
[1759187186030,92.18165984,213.92,213.91,1e-08]
[1759187188549,85.79473415,213.92,213.91,1e-08]
[1759187191655,52.87473415,213.92,213.91,1e-08]
[1759187191856,85.79473415,213.92,213.91,1e-08]
[1759187193630,85.77473415,213.92,213.91,1e-08]
[1759187195662,89.45439931,213.92,213.91,1e-08]
[1759187196260,95.861325,213.92,213.91,1e-08]
[1759187198262,39.59559401,213.87,213.83,0.2]
[1759187198439,13.59559401,213.85,213.83,0.2]
[1759187198638,32.88,213.84,213.83,0.2]
[1759187198937,15.47154664,213.84,213.83,0.2]
[1759187199253,19.29904394,213.84,213.83,1e-08]
[1759187199557,13.59559401,213.82,213.81,1e-08]
[1759187199863,75.38124149,213.82,213.81,1e-08]
[1759187200238,80.05807246,213.82,213.81,1e-08]
[1759187200755,83.18421264,213.82,213.81,1e-08]
[1759187201454,83.88421264,213.82,213.81,1e-08]
[1759187201854,83.18421264,213.82,213.81,1e-08]
[1759187202840,80.29856516,213.82,213.81,1e-08]
[1759187203171,83.18421264,213.82,213.81,1e-08]
[1759187203466,14.26714426,213.84,213.81,0.69000001]
[1759187203467,1.87595263,213.84,213.81,0.69000001]
[1759187203664,6.55247602,213.84,213.82,0.69]
[1759187203961,20.14807003,213.84,213.83,0.69]
[1759187204157,4.67615046,213.86,213.83,0.69]
[1759187204364,13.59559401,213.85,213.84,0.69]
[1759187204554,41.47119479,213.85,213.84,0.69]
[1759187204744,41.47119479,213.85,213.81,1e-08]
[1759187204946,26.0,213.83,213.81,1e-08]
[1759187206067,26.0,213.83,213.82,0.69]
[1759187206263,26.0,213.83,213.81,1e-08]
[1759187206948,18.27242498,213.82,213.81,1e-08]
[1759187207265,39.59559401,213.83,213.82,0.69]
[1759187207948,44.27222321,213.83,213.81,1e-08]
[1759187208137,39.59559401,213.83,213.81,1e-08]
[1759187208546,26.0,213.83,213.82,0.69]
[1759187210564,26.0,213.86,213.82,0.69]
[1759187210861,26.0,213.86,213.83,0.69]
[1759187211062,26.0,213.86,213.84,0.69]
[1759187211268,26.0,213.86,213.85,0.68]
[1759187212471,4.67552164,213.88,213.85,0.68]
[1759187212641,4.67552164,213.88,213.81,1e-08]
[1759187212642,4.67552164,213.88,213.86,0.68]
[1759187213048,30.67552164,213.88,213.86,0.68]
[1759187213462,30.67552164,213.88,213.84,0.68]
[1759187213653,30.67552164,213.88,213.82,4.67683097]
[1759187213654,30.67552164,213.88,213.81,4.67704972]
[1759187213855,26.0,213.88,213.82,0.68]
[1759187215282,4.67510409,213.9,213.82,0.68]
[1759187215444,131.6,213.93,213.82,0.68]
[1759187215646,145.66239014,213.93,213.84,16.36737747]
[1759187215859,131.6,213.93,213.85,3.56564748]
[1759187216071,131.6,213.93,213.86,0.68]
[1759187216964,136.27453107,213.93,213.86,0.68]
[1759187217363,14.28559401,213.92,213.83,0.68]
[1759187218063,4.67486326,213.91,213.83,5.3564008]
[1759187218263,5.36486326,213.91,213.83,5.3564008]
[1759187218471,5.36486326,213.91,213.83,4.6764008]
[1759187218667,5.36486326,213.91,213.84,0.68]
[1759187220378,5.36486326,213.91,213.84,5.35634651]
[1759187220870,0.69,213.9,213.84,5.35634651]
[1759187221375,0.69,213.89,213.82,5.35664937]
[1759187221953,0.69,213.88,213.82,5.35664937]
[1759187222150,0.69,213.88,213.82,0.68]
[1759187222355,4.67573759,213.87,213.82,0.68]
[1759187222568,5.36573759,213.87,213.82,0.68]
[1759187223085,5.36573759,213.87,213.81,1e-08]
[1759187223086,26.0,213.83,213.81,1e-08]
[1759187223478,26.69,213.83,213.81,1e-08]
[1759187223689,14.28559401,213.82,213.81,1e-08]
[1759187224059,16.16154665,213.82,213.81,1e-08]
[1759187224571,20.83837762,213.82,213.81,1e-08]
[1759187226081,23.97958304,213.82,213.81,1e-08]
[1759187226383,7.81803639,213.82,213.81,1e-08]
[1759187226564,4.67683097,213.82,213.81,1e-08]
[1759187226759,31.01698211,213.83,213.81,0.68000001]
[1759187226961,26.0,213.83,213.81,0.68000001]
[1759187227366,26.0,213.83,213.81,1e-08]
[1759187229080,26.0,213.83,213.81,0.68000001]
[1759187229467,26.0,213.83,213.81,1e-08]
[1759187232187,31.36669631,213.83,213.81,1e-08]
[1759187232497,13.59559401,213.9,213.82,0.68]
[1759187232681,13.59559401,213.91,213.83,1.8507145]
[1759187232866,3.14307402,213.91,213.84,0.68]
[1759187233185,1.87507324,213.92,213.85,4.67617488]
[1759187233384,1.87507324,213.92,213.86,0.68]
[1759187233566,4.67420772,213.94,213.85,4.67617488]
[1759187233768,0.69,213.93,213.85,4.67617488]
[1759187233969,0.69,213.92,213.86,0.68]
[1759187235584,5.36473039,213.92,213.86,5.35580354]
[1759187236311,3.83239374,213.95,213.87,2.5107145]
[1759187236474,26.0,213.96,213.89,1.8507145]
[1759187236475,29.14239374,213.96,213.89,1.8507145]
[1759187236674,17.20082998,213.99,213.91,1.8507145]
[1759187236880,7.81552967,213.99,213.93,1.8507145]
[1759187237077,8.50552967,213.99,213.93,1.8507145]
[1759187237302,5.36313593,213.99,213.94,0.66]
[1759187237597,0.69,213.98,213.93,1.8507145]
[1759187237795,26.0,213.99,213.95,1.8507145]
[1759187238098,4.67227351,214.03,213.96,0.66]
[1759187238274,0.69,214.02,213.96,0.66]
[1759187238799,0.69,214.02,213.97,1.8507145]
[1759187238984,0.69,214.01,213.97,1.8507145]
[1759187239185,4.67260943,214.02,213.97,7.18424925]
[1759187239387,5.36260943,214.02,213.97,7.18424925]
[1759187239587,4.67260943,214.02,213.97,1.8507145]
[1759187239795,0.69,214.01,213.97,1.8507145]
[1759187240887,0.69,214.0,213.97,1.8507145]
[1759187241203,5.36298127,214.0,213.97,1.8507145]
[1759187241400,5.36298127,214.0,213.95,2.5107145]
[1759187241713,0.67,213.99,213.95,1.8507145]
[1759187241884,0.67,213.98,213.95,1.8507145]
[1759187243680,0.67,213.98,213.92,0.69]
[1759187243681,0.67,213.97,213.92,32.96]
[1759187244001,0.67,213.96,213.92,34.8107145]
[1759187244182,5.34348769,213.98,213.92,35.5007145]
[1759187244697,5.34348769,213.98,213.92,40.17534179]
[1759187244894,5.34348769,213.98,213.94,1.8507145]
[1759187245279,26.0,213.99,213.94,2.5407145]
[1759187245518,26.67,213.99,213.94,2.5407145]
[1759187245879,43.02590555,213.99,213.94,0.69]
[1759187246080,0.67,213.98,213.91,1.8507145]
[1759187246276,171.86559401,213.97,213.86,0.69]
[1759187246505,26.0,213.92,213.86,1.8507145]
[1759187246705,4.67486326,213.91,213.86,1.8507145]
[1759187246907,5.34486326,213.91,213.86,1.8507145]
[1759187247107,5.34486326,213.91,213.86,2.5407145]
[1759187248405,0.67,213.9,213.84,2.5407145]
[1759187248606,0.67,213.9,213.84,35.5007145]
[1759187249109,0.67,213.9,213.84,33.65]
[1759187249606,0.67,213.9,213.84,38.32638745]
[1759187249908,0.67,213.9,213.84,33.65]
[1759187250402,5.34530038,213.89,213.83,32.96]
[1759187250705,11.68715815,213.91,213.83,32.96]
[1759187250706,4.67500848,213.91,213.83,32.96]
[1759187250902,26.67,213.91,213.84,0.69]
[1759187251302,3.13189713,213.94,213.84,0.69]
[1759187251607,131.6,213.96,213.86,1.8507145]
[1759187251808,131.6,213.96,213.87,0.69]
[1759187251996,131.6,213.96,213.89,1.8507145]
[1759187252192,131.6,213.96,213.89,2.5407145]
[1759187252400,131.6,213.96,213.9,4.67508181]
[1759187253413,26.0,213.92,213.81,1e-08]
[1759187253710,26.0,213.92,213.82,33.04]
[1759187253892,26.0,213.92,213.83,0.69]
[1759187254607,31.34486326,213.91,213.84,4.67639356]
[1759187255326,31.34486326,213.91,213.84,6.52710806]
[1759187255697,30.67486326,213.91,213.84,6.52710806]
[1759187255893,0.67,213.9,213.84,39.58710806]
[1759187256310,0.67,213.92,213.85,0.69]
[1759187256484,42.35997183,213.94,213.87,1.8507145]
[1759187256485,0.67,213.94,213.87,1.8507145]
[1759187256823,0.67,213.96,213.9,1.8507145]
[1759187257028,0.67,213.96,213.9,34.9107145]
[1759187257996,5.3439498,213.96,213.9,39.58575554]
[1759187258495,0.67,213.96,213.9,39.58575554]
[1759187262332,4.67333395,213.98,213.91,0.69]
[1759187262626,5.34333395,213.98,213.91,0.69]
[1759187263930,5.34333395,213.98,213.92,4.67464472]
[1759187264127,0.67,213.97,213.92,4.67464472]
[1759187264329,0.67,213.96,213.92,4.67464472]
[1759187266135,26.0,213.99,213.92,1.8507145]
[1759187266327,5.34287537,214.01,213.93,0.69]
[1759187267431,5.34287537,214.01,213.94,1.8507145]
[1759187267727,5.34287537,214.01,213.95,37.69398924]
[1759187267935,0.67,214.01,213.95,37.69398924]
[1759187268131,136.27246563,214.02,213.95,37.69398924]
[1759187268438,0.67,214.01,213.95,37.69398924]
[1759187269148,136.27246563,214.02,213.95,37.69398924]
[1759187269149,0.67,214.0,213.95,37.69398924]
[1759187269311,136.27246563,214.02,213.95,37.69398924]
[1759187269512,0.67,214.01,213.95,37.69398924]
[1759187269933,4.67289719,214.0,213.95,37.69398924]
[1759187270136,5.34289719,214.0,213.95,38.38398924]
[1759187270367,0.67,214.0,213.95,38.38398924]
[1759187270831,0.67,214.0,213.96,33.0]
[1759187271224,0.67,214.0,213.95,5.36398924]
[1759187271433,0.67,214.0,213.96,32.98]
[1759187271748,5.34298045,214.0,213.96,32.98]
[1759187272040,5.34298045,214.0,213.95,5.36398924]
[1759187272041,0.72,213.99,213.95,32.98]
[1759187272350,0.72,213.98,213.95,32.98]
[1759187273417,0.72,214.04,213.97,1.8507145]
[1759187273640,0.1,214.05,214.0,1.8507145]
[1759187273828,0.72,214.04,214.0,33.0]
[1759187274014,0.72,214.03,213.97,1.8507145]
[1759187274220,0.72,214.03,213.98,33.02]
[1759187274719,0.72,214.03,213.98,33.67]
[1759187275215,5.39228302,214.03,213.98,33.67]
[1759187276346,0.72,214.02,213.98,33.02]
[1759187277343,0.72,214.02,213.98,33.0]
[1759187277527,4.67228302,214.03,213.98,37.67331263]
[1759187277838,5.39228302,214.03,213.98,38.32331263]
[1759187278039,0.72,214.02,213.98,33.0]
[1759187279742,5.39264531,214.02,213.98,33.0]
[1759187281536,5.39264531,214.02,213.96,0.65]
[1759187281537,0.72,214.01,213.96,32.98]
[1759187281741,0.72,214.0,213.96,32.98]
[1759187281946,0.72,213.99,213.96,32.98]
[1759187282443,0.72,213.98,213.96,32.98]
[1759187282745,4.67311556,213.99,213.96,32.98]
[1759187282944,5.39311556,213.99,213.96,32.98]
[1759187283126,4.67311556,213.99,213.93,0.65]
[1759187283329,0.72,213.98,213.92,32.98]
[1759187283535,0.72,213.97,213.92,32.98]
[1759187283732,0.72,213.96,213.92,32.98]
[1759187284138,0.72,213.96,213.92,33.63]
[1759187284339,0.72,213.95,213.86,0.65]
[1759187284523,0.72,213.95,213.87,33.0]
[1759187284843,0.72,213.94,213.87,33.0]
[1759187285937,26.0,213.92,213.87,33.0]
[1759187286330,0.72,213.91,213.87,33.0]
[1759187287046,0.72,213.91,213.86,0.65]
[1759187287249,0.72,213.9,213.87,33.0]
[1759187287430,0.72,213.9,213.84,33.65]
[1759187287828,3.14176198,213.92,213.85,4.67617488]
[1759187288035,7.81511994,213.98,213.86,2.5007145]
[1759187288230,3.86176198,214.0,213.88,26.0]
[1759187288550,26.0,213.99,213.89,33.67]
[1759187288855,18.26827285,214.01,213.9,0.65]
[1759187289226,3.14176198,214.01,213.92,1.8507145]
[1759187289451,5.39248242,214.02,213.93,0.65]
[1759187289752,31.39248242,214.02,213.94,33.02]
[1759187289953,31.39248242,214.02,213.96,4.67377079]
[1759187290155,5.39248242,214.02,213.95,5.3239809]
[1759187290353,31.39248242,214.02,213.95,5.3239809]
[1759187290541,5.39248242,214.02,213.95,5.3239809]
[1759187290852,0.72,214.01,213.95,5.3239809]
[1759187291049,5.39283186,214.01,213.95,5.3239809]
[1759187291356,0.72,214.01,213.95,5.3239809]
[1759187292138,26.0,214.02,213.95,4.6739809]
[1759187292457,26.0,214.02,213.98,1.8507145]
[1759187292627,26.0,214.02,213.98,2.5007145]
[1759187292831,30.67247929,214.02,213.98,1.8507145]
[1759187293058,26.0,214.02,213.98,1.8507145]
[1759187294257,30.67250954,214.02,213.97,7.55954778]
[1759187294435,31.39250954,214.02,213.97,3.53602897]
[1759187294632,0.67,214.01,213.97,2.88602897]
[1759187294836,0.67,214.0,213.97,2.88602897]
[1759187295554,5.34250954,214.02,213.97,2.88602897]
[1759187295745,0.67,214.01,213.97,2.88602897]
[1759187296548,4.67250954,214.02,213.97,2.88602897]
[1759187296744,0.67,214.0,213.97,2.88602897]
[1759187298153,5.34290614,214.0,213.97,2.88602897]
[1759187298363,0.67,213.99,213.89,4.67509655]
[1759187298547,0.67,213.98,213.91,2.88602897]
[1759187299160,26.67,213.97,213.9,33.0]
[1759187299363,13.59559401,213.95,213.9,33.0]
[1759187299551,0.67,213.94,213.9,33.0]
[1759187299856,0.67,213.93,213.9,33.0]
[1759187300566,4.67464472,213.92,213.9,33.0]
[1759187300750,5.34464472,213.92,213.9,33.0]
[1759187300953,0.67,213.91,213.87,33.02]
[1759187301664,4.67464472,213.92,213.87,33.02]
[1759187301869,0.66,213.9,213.87,33.02]
[1759187302050,16.36125653,213.92,213.85,0.71]
[1759187302360,0.66,213.91,213.85,33.02]
[1759187302769,4.67464472,213.92,213.86,0.71]
[1759187303760,0.66,213.91,213.85,33.02]
[1759187303964,0.66,213.91,213.85,37.69614455]
[1759187304142,0.66,213.91,213.86,0.71]
[1759187304771,5.33491642,213.91,213.86,0.71]
[1759187305849,0.66,213.9,213.85,33.02]
[1759187306050,0.66,213.89,213.85,33.02]
[1759187306470,4.67491642,213.91,213.85,33.02]
[1759187306764,5.33491642,213.91,213.85,33.73]
[1759187306942,0.66,213.9,213.85,33.02]
[1759187307146,5.33523493,213.9,213.85,37.69617039]
[1759187307565,4.67523493,213.9,213.85,37.69617039]
[1759187307772,0.66,213.89,213.85,37.69617039]
[1759187307956,0.66,213.88,213.85,37.69617039]
[1759187309260,0.66,213.88,213.83,0.71]
[1759187309461,6.03001148,213.92,213.81,1e-08]
[1759187309462,0.66,213.87,213.81,1e-08]
[1759187309775,0.66,213.87,213.83,32.98]
[1759187310071,0.66,213.86,213.83,32.98]
[1759187310271,0.66,213.85,213.83,32.98]
[1759187311155,5.33618976,213.85,213.83,32.98]
[1759187311555,0.66,213.84,213.81,32.98000001]
[1759187311760,0.66,213.84,213.81,1e-08]
[1759187312644,16.36662698,213.85,213.81,1e-08]
[1759187312848,0.66,213.83,213.81,1e-08]
[1759187313256,4.67683097,213.82,213.81,1e-08]
[1759187313470,5.33661963,213.83,213.81,1e-08]
[1759187313668,0.66,213.84,213.81,1e-08]
[1759187313971,5.33496616,213.91,213.81,0.71000001]
[1759187314961,13.59559401,213.9,213.81,0.71000001]
[1759187315149,0.66,213.89,213.81,0.71000001]
[1759187316174,4.67551898,213.88,213.82,4.67683097]
[1759187316474,5.33551898,213.88,213.82,4.67683097]
[1759187318567,0.66,213.87,213.82,4.67683097]
[1759187319076,0.66,213.87,213.82,5.38683097]
[1759187319977,13.59559401,213.9,213.83,0.71]
[1759187320273,13.59559401,213.9,213.82,4.67683097]
[1759187320274,0.66,213.87,213.82,5.38683097]
[1759187320474,0.66,213.86,213.81,1e-08]
[1759187320672,13.59559401,213.85,213.81,1e-08]
[1759187321049,39.59559401,213.83,213.81,1e-08]
[1759187321461,14.25559401,213.82,213.81,1e-08]
[1759187322169,18.93242498,213.82,213.81,1e-08]
[1759187335389,18.27242498,213.82,213.81,1e-08]
[1759187335695,13.59559401,213.82,213.81,0.66000001]
[1759187335889,13.59559401,213.82,213.81,1e-08]
[1759187336262,18.27242498,213.82,213.81,1e-08]
[1759187336472,18.94242498,213.82,213.81,1e-08]
[1759187337385,18.27242498,213.82,213.81,1e-08]
[1759187341393,18.94242498,213.82,213.81,1e-08]
[1759187341892,51.94242498,213.82,213.81,1e-08]
[1759187342093,55.06911497,213.82,213.81,1e-08]
[1759187342477,55.06911497,213.82,213.79,0.2]
[1759187342478,13.59559401,213.8,213.79,0.2]
[1759187342789,49.48162298,213.8,213.79,0.2]
[1759187343088,53.27831297,213.8,213.79,0.2]
[1759187343269,57.95558144,213.8,213.79,0.2]
[1759187343469,57.95558144,213.8,213.79,1e-08]
[1759187343872,24.95558144,213.8,213.79,1e-08]
[1759187344077,54.82889145,213.8,213.79,1e-08]
[1759187344281,57.95558144,213.8,213.79,1e-08]
[1759187345499,13.59559401,213.79,213.78,1e-08]
[1759187345697,16.722284,213.79,213.78,1e-08]
[1759187345872,17.392284,213.79,213.78,1e-08]
[1759187346994,22.06977125,213.79,213.78,1e-08]
[1759187347388,55.06977125,213.79,213.78,1e-08]
[1759187348780,22.06977125,213.79,213.78,1e-08]
[1759187348980,55.06977125,213.79,213.78,1e-08]
[1759187350891,54.39977125,213.79,213.78,1e-08]
[1759187352697,4.67728035,213.8,213.78,0.66000001]
[1759187353883,4.67728035,213.8,213.78,1e-08]
[1759187354093,13.59559401,213.79,213.78,1e-08]
[1759187355296,18.27308126,213.79,213.78,1e-08]
[1759187355509,7.81776407,213.81,213.78,0.71000001]
[1759187355693,30.67723814,213.81,213.78,1e-08]
[1759187355881,26.0,213.8,213.78,1e-08]
[1759187356492,26.0,213.8,213.78,0.71000001]
[1759187356680,29.14052593,213.8,213.78,0.71000001]
[1759187357413,4.67748725,213.79,213.78,0.71000001]
[1759187360296,5.39748725,213.79,213.78,1e-08]
[1759187360498,18.27308126,213.79,213.78,1e-08]
[1759187360710,47.41360719,213.79,213.78,1e-08]
[1759187360912,48.13360719,213.79,213.78,1e-08]
[1759187361815,47.41360719,213.79,213.78,1e-08]
[1759187362913,48.13360719,213.79,213.78,1e-08]
[1759187363916,50.0098238,213.79,213.78,1e-08]
[1759187365329,24.0098238,213.79,213.78,1e-08]
[1759187365615,25.86147044,213.79,213.78,1e-08]
[1759187366308,29.79144857,213.79,213.78,1e-08]
[1759187367318,56.2898238,213.79,213.78,1e-08]
[1759187367509,7.81801318,213.79,213.78,0.67000001]
[1759187368909,3.14052593,213.79,213.78,0.67000001]
[1759187369512,3.14052593,213.81,213.78,0.67000001]
[1759187369828,7.81746821,213.82,213.78,0.67000001]
[1759187370029,3.14052593,213.81,213.78,0.67000001]
[1759187370199,3.14052593,213.8,213.78,0.67000001]
[1759187370399,3.14052593,213.81,213.79,0.67]
[1759187370613,3.14052593,213.83,213.79,0.67]
[1759187370920,3.14052593,213.82,213.79,0.67]
[1759187371126,3.14052593,213.81,213.79,0.67]
[1759187371319,3.14052593,213.82,213.79,0.67]
[1759187371695,3.14052593,213.82,213.8,0.67]
[1759187371900,3.14052593,213.82,213.81,0.67]
[1759187372918,7.81738585,213.82,213.79,0.67]
[1759187373117,3.14052593,213.81,213.78,1e-08]
[1759187373327,3.14052593,213.81,213.78,0.67000001]
[1759187374100,3.14052593,213.81,213.79,0.67]
[1759187374520,7.8176327,213.81,213.78,1e-08]
[1759187374720,3.14052593,213.8,213.78,1e-08]
[1759187374908,3.14052593,213.8,213.78,0.67000001]
[1759187375925,7.81758977,213.81,213.78,0.67000001]
[1759187376117,3.14052593,213.8,213.78,0.67000001]
[1759187378431,7.81721312,213.83,213.78,1e-08]
[1759187378725,3.14052593,213.82,213.79,0.67]
[1759187378934,4.67595282,213.87,213.8,1.85164664]
[1759187379107,3.15127997,213.86,213.81,0.67]